[Event "Titled Tuesday Blitz December 06 Late 2022"]
[White "Kim, Sergey"]
[Black "Ansh M Shah"]
[WhiteFideId "13700570"]
[BlackFideId "25033379"]
[WhiteElo "2574"]
[BlackElo "2084"]
[Result "1-0"]
[Round "10"]
[TimeControl "180+1"]
[Date "2022.12.07"]
[WhiteClock "0:00:10"]
[BlackClock "0:00:12"]

1. d4 {[%clk 0:03:00]}  Nf6 {[%clk 0:03:00]} 2. c4 {[%clk 0:03:01]}  e6 {[%clk 0:02:59]} 3. Nc3 {[%clk 0:03:01]}  d5 {[%clk 0:03:00]} 4. Nf3 {[%clk 0:03:00]}  Be7 {[%clk 0:03:00]} 5. Bf4 {[%clk 0:03:00]}  O-O {[%clk 0:03:01]} 6. e3 {[%clk 0:03:00]}  c6 {[%clk 0:03:01]} 7. c5 {[%clk 0:03:00]}  Nbd7 {[%clk 0:03:00]} 8. h3 {[%clk 0:03:00]}  b6 {[%clk 0:03:01]} 9. b4 {[%clk 0:02:59]}  a5 {[%clk 0:03:02]} 10. a3 {[%clk 0:02:59]}  Ba6 {[%clk 0:03:02]} 11. Bxa6 {[%clk 0:02:57]}  Rxa6 {[%clk 0:03:02]} 12. O-O {[%clk 0:02:56]}  Qa8 {[%clk 0:03:00]} 13. Qb1 {[%clk 0:02:49]}  Rc8 {[%clk 0:02:44]} 14. Rc1 {[%clk 0:02:46]}  h6 {[%clk 0:02:40]} 15. b5 {[%clk 0:02:25]}  cxb5 {[%clk 0:02:38]} 16. Nxb5 {[%clk 0:02:26]}  Bd8 {[%clk 0:02:19]} 17. Nd6 {[%clk 0:02:18]}  Rc6 {[%clk 0:02:15]} 18. Ne5 {[%clk 0:02:02]}  Nxe5 {[%clk 0:02:15]} 19. dxe5 {[%clk 0:01:40]}  Nd7 {[%clk 0:02:12]} 20. cxb6 {[%clk 0:01:40]}  Raxb6 {[%clk 0:02:09]} 21. Qd3 {[%clk 0:01:31]}  Be7 {[%clk 0:02:05]} 22. Rxc6 {[%clk 0:01:08]}  Qxc6 {[%clk 0:02:02]} 23. Qd4 {[%clk 0:01:04]}  f6 {[%clk 0:00:57]} 24. exf6 {[%clk 0:01:01]}  Bxf6 {[%clk 0:00:29]} 25. Qd1 {[%clk 0:01:00]}  e5 {[%clk 0:00:27]} 26. Nf5 {[%clk 0:00:46]}  exf4 {[%clk 0:00:25]} 27. Rc1 {[%clk 0:00:39]}  Qe6 {[%clk 0:00:24]} 28. Qg4 {[%clk 0:00:36]}  Nf8 {[%clk 0:00:22]} 29. Rc8 {[%clk 0:00:32]}  fxe3 {[%clk 0:00:17]} 30. Nxh6+ {[%clk 0:00:25]}  Kh7 {[%clk 0:00:17]} 31. fxe3 {[%clk 0:00:20]}  Qxg4 {[%clk 0:00:17]} 32. Nxg4 {[%clk 0:00:19]}  Ne6 {[%clk 0:00:15]} 33. Ra8 {[%clk 0:00:18]}  Rb5 {[%clk 0:00:14]} 34. Ra7 {[%clk 0:00:18]}  Kg6 {[%clk 0:00:14]} 35. Kf2 {[%clk 0:00:19]}  Ng5 {[%clk 0:00:14]} 36. Ke2 {[%clk 0:00:18]}  Ne4 {[%clk 0:00:14]} 37. Kd3 {[%clk 0:00:18]}  Rb3+ {[%clk 0:00:15]} 38. Ke2 {[%clk 0:00:18]}  Rxa3 {[%clk 0:00:15]} 39. Ra6 {[%clk 0:00:17]}  Ra2+ {[%clk 0:00:16]} 40. Ke1 {[%clk 0:00:16]}  Rxg2 {[%clk 0:00:15]} 41. Ne5+ {[%clk 0:00:14]}  Kh7 {[%clk 0:00:14]} 42. Nf3 {[%clk 0:00:15]}  Rg3 {[%clk 0:00:14]} 43. Ke2 {[%clk 0:00:14]}  Rxh3 {[%clk 0:00:14]} 44. Rxa5 {[%clk 0:00:14]}  Rh2+ {[%clk 0:00:14]} 45. Nxh2 {[%clk 0:00:14]}  Kg6 {[%clk 0:00:13]} 46. Kd3 {[%clk 0:00:14]}  Nd6 {[%clk 0:00:11]} 47. Rxd5 {[%clk 0:00:13]}  Nf5 {[%clk 0:00:12]} 48. Nf3 {[%clk 0:00:12]}  Ne7 {[%clk 0:00:11]} 49. Ra5 {[%clk 0:00:12]}  Nc6 {[%clk 0:00:11]} 50. Rb5 {[%clk 0:00:11]}  Na7 {[%clk 0:00:11]} 51. Rb6 {[%clk 0:00:10]}  Nc6 {[%clk 0:00:12]} 52. Rxc6 {[%clk 0:00:10]} 1-0


[Site "https://www.chess.com"]

[Event "Titled Tuesday Blitz December 06 Late 2022"]
[White "Korobov, Anton"]
[Black "Kamsky, Gata"]
[WhiteFideId "14105730"]
[BlackFideId "2000024"]
[WhiteElo "2635"]
[BlackElo "2666"]
[Result "0-1"]
[Round "10"]
[TimeControl "180+1"]
[Date "2022.12.06"]
[WhiteClock "0:00:17"]
[BlackClock "0:00:40"]

1. d4 {[%clk 0:03:00]}  f5 {[%clk 0:02:58]} 2. g3 {[%clk 0:02:59]}  Nf6 {[%clk 0:02:58]} 3. Bg2 {[%clk 0:03:00]}  g6 {[%clk 0:02:58]} 4. Nf3 {[%clk 0:02:59]}  Bg7 {[%clk 0:02:58]} 5. O-O {[%clk 0:02:59]}  d6 {[%clk 0:02:59]} 6. b3 {[%clk 0:02:59]}  O-O {[%clk 0:02:57]} 7. Bb2 {[%clk 0:02:59]}  c6 {[%clk 0:02:56]} 8. Nbd2 {[%clk 0:03:00]}  a5 {[%clk 0:02:55]} 9. a3 {[%clk 0:02:56]}  Na6 {[%clk 0:02:54]} 10. c4 {[%clk 0:02:53]}  Ne4 {[%clk 0:02:51]} 11. e3 {[%clk 0:02:49]}  Nxd2 {[%clk 0:02:48]} 12. Qxd2 {[%clk 0:02:46]}  Qb6 {[%clk 0:02:26]} 13. Rfb1 {[%clk 0:02:25]}  Re8 {[%clk 0:02:15]} 14. d5 {[%clk 0:02:09]}  Bxb2 {[%clk 0:02:11]} 15. Rxb2 {[%clk 0:02:10]}  Nc5 {[%clk 0:02:08]} 16. Nd4 {[%clk 0:02:06]}  Bd7 {[%clk 0:01:55]} 17. Rbb1 {[%clk 0:01:59]}  cxd5 {[%clk 0:01:53]} 18. Bxd5+ {[%clk 0:01:48]}  e6 {[%clk 0:01:54]} 19. Bg2 {[%clk 0:01:48]}  e5 {[%clk 0:01:54]} 20. Nb5 {[%clk 0:01:39]}  Bxb5 {[%clk 0:01:50]} 21. cxb5 {[%clk 0:01:40]}  e4 {[%clk 0:01:47]} 22. Bf1 {[%clk 0:01:37]}  Rad8 {[%clk 0:01:22]} 23. Qd5+ {[%clk 0:01:23]}  Kg7 {[%clk 0:01:20]} 24. Rd1 {[%clk 0:01:07]}  Ne6 {[%clk 0:01:17]} 25. Rac1 {[%clk 0:01:03]}  Re7 {[%clk 0:01:15]} 26. a4 {[%clk 0:00:52]}  h5 {[%clk 0:01:12]} 27. h4 {[%clk 0:00:50]}  Kf6 {[%clk 0:01:04]} 28. Qd2 {[%clk 0:00:44]}  d5 {[%clk 0:01:04]} 29. b4 {[%clk 0:00:43]}  axb4 {[%clk 0:01:01]} 30. Qxb4 {[%clk 0:00:44]}  d4 {[%clk 0:00:57]} 31. a5 {[%clk 0:00:44]}  Qd6 {[%clk 0:00:57]} 32. Qb2 {[%clk 0:00:44]}  Qe5 {[%clk 0:00:56]} 33. a6 {[%clk 0:00:41]}  bxa6 {[%clk 0:00:54]} 34. bxa6 {[%clk 0:00:41]}  d3 {[%clk 0:00:54]} 35. Qb6 {[%clk 0:00:40]}  Rd6 {[%clk 0:00:53]} 36. Qb8 {[%clk 0:00:36]}  Rxa6 {[%clk 0:00:50]} 37. Qh8+ {[%clk 0:00:33]}  Rg7 {[%clk 0:00:48]} 38. Rc8 {[%clk 0:00:34]}  Qd6 {[%clk 0:00:46]} 39. Rb1 {[%clk 0:00:26]}  Ra7 {[%clk 0:00:44]} 40. Kg2 {[%clk 0:00:20]}  Rc7 {[%clk 0:00:43]} 41. Ra8 {[%clk 0:00:20]}  Rf7 {[%clk 0:00:42]} 42. Rba1 {[%clk 0:00:18]}  Rf8 {[%clk 0:00:42]} 43. Rxf8+ {[%clk 0:00:17]}  Qxf8 {[%clk 0:00:42]} 44. Qh6 {[%clk 0:00:17]}  Rd7 {[%clk 0:00:40]} 0-1


[Site "https://www.chess.com"]

[Event "Titled Tuesday Blitz December 06 Late 2022"]
[White "Liu, Kelsey"]
[Black "Hoffmann, Asa"]
[WhiteFideId "30944481"]
[BlackFideId "2001470"]
[WhiteElo "2263"]
[BlackElo "2117"]
[Result "0-1"]
[Round "10"]
[TimeControl "180+1"]
[Date "2022.12.07"]
[WhiteClock "0:01:14"]
[BlackClock "0:01:58"]

1. e4 {[%clk 0:02:47]}  d6 {[%clk 0:02:57]} 2. d4 {[%clk 0:02:46]}  Nf6 {[%clk 0:02:57]} 3. Nc3 {[%clk 0:02:45]}  c6 {[%clk 0:02:57]} 4. Bd3 {[%clk 0:02:42]}  e5 {[%clk 0:02:55]} 5. Nge2 {[%clk 0:02:40]}  Be7 {[%clk 0:02:54]} 6. Bg5 {[%clk 0:02:36]}  h6 {[%clk 0:02:52]} 7. Bh4 {[%clk 0:02:32]}  Qb6 {[%clk 0:02:51]} 8. Na4 {[%clk 0:02:13]}  Qa5+ {[%clk 0:02:43]} 9. c3 {[%clk 0:02:13]}  b5 {[%clk 0:02:40]} 10. dxe5 {[%clk 0:02:07]}  dxe5 {[%clk 0:02:38]} 11. Bxf6 {[%clk 0:02:02]}  gxf6 {[%clk 0:02:34]} 12. Bc2 {[%clk 0:01:41]}  bxa4 {[%clk 0:02:33]} 13. Bxa4 {[%clk 0:01:42]}  Be6 {[%clk 0:02:29]} 14. Qc2 {[%clk 0:01:34]}  Qb6 {[%clk 0:02:28]} 15. O-O-O {[%clk 0:01:30]}  Nd7 {[%clk 0:02:27]} 16. Ng3 {[%clk 0:01:26]}  Nc5 {[%clk 0:02:26]} 17. Nf5 {[%clk 0:01:25]}  Rb8 {[%clk 0:02:17]} 18. Ng7+ {[%clk 0:01:23]}  Kf8 {[%clk 0:02:16]} 19. Nxe6+ {[%clk 0:01:24]}  fxe6 {[%clk 0:02:13]} 20. b4 {[%clk 0:01:19]}  Nxa4 {[%clk 0:02:03]} 21. Qxa4 {[%clk 0:01:20]}  Qxf2 {[%clk 0:01:59]} 22. Qxa7 {[%clk 0:01:14]}  Qxa7 {[%clk 0:01:58]} 0-1


[Site "https://www.chess.com"]

[Event "Titled Tuesday Blitz December 06 Late 2022"]
[White "Maghsoodloo, Parham"]
[Black "Xiong, Jeffery"]
[WhiteFideId "12539929"]
[BlackFideId "2047640"]
[WhiteElo "2672"]
[BlackElo "2726"]
[Result "0-1"]
[Round "10"]
[TimeControl "180+1"]
[Date "2022.12.06"]
[WhiteClock "0:00:02"]
[BlackClock "0:00:03"]

1. e4 {[%clk 0:03:00]}  c5 {[%clk 0:02:47]} 2. Nc3 {[%clk 0:02:56]}  Nc6 {[%clk 0:02:45]} 3. Bb5 {[%clk 0:02:56]}  Nd4 {[%clk 0:02:45]} 4. Nf3 {[%clk 0:02:56]}  e6 {[%clk 0:02:45]} 5. O-O {[%clk 0:02:56]}  Ne7 {[%clk 0:02:46]} 6. Re1 {[%clk 0:02:55]}  a6 {[%clk 0:02:42]} 7. Bf1 {[%clk 0:02:45]}  Nec6 {[%clk 0:02:20]} 8. Nxd4 {[%clk 0:02:39]}  Nxd4 {[%clk 0:02:21]} 9. a4 {[%clk 0:02:36]}  b6 {[%clk 0:02:21]} 10. g3 {[%clk 0:02:33]}  Bb7 {[%clk 0:02:22]} 11. Bg2 {[%clk 0:02:34]}  Be7 {[%clk 0:02:22]} 12. d3 {[%clk 0:02:34]}  O-O {[%clk 0:02:23]} 13. Be3 {[%clk 0:02:34]}  d6 {[%clk 0:02:17]} 14. f4 {[%clk 0:02:33]}  e5 {[%clk 0:02:13]} 15. fxe5 {[%clk 0:02:29]}  dxe5 {[%clk 0:02:13]} 16. Nd5 {[%clk 0:02:30]}  Bxd5 {[%clk 0:01:24]} 17. exd5 {[%clk 0:02:30]}  Rc8 {[%clk 0:01:03]} 18. g4 {[%clk 0:02:13]}  Bh4 {[%clk 0:01:01]} 19. Rf1 {[%clk 0:02:12]}  f5 {[%clk 0:00:34]} 20. c3 {[%clk 0:02:12]}  f4 {[%clk 0:00:32]} 21. cxd4 {[%clk 0:02:12]}  fxe3 {[%clk 0:00:32]} 22. dxe5 {[%clk 0:02:10]}  Qg5 {[%clk 0:00:21]} 23. e6 {[%clk 0:02:00]}  Qe5 {[%clk 0:00:22]} 24. Qe2 {[%clk 0:01:56]}  Rf2 {[%clk 0:00:22]} 25. d4 {[%clk 0:01:30]}  cxd4 {[%clk 0:00:22]} 26. Qd3 {[%clk 0:00:54]}  Rcc2 {[%clk 0:00:21]} 27. Rxf2 {[%clk 0:00:48]}  exf2+ {[%clk 0:00:19]} 28. Kh1 {[%clk 0:00:43]}  Qe1+ {[%clk 0:00:14]} 29. Qf1 {[%clk 0:00:44]}  Re2 {[%clk 0:00:14]} 30. Bf3 {[%clk 0:00:21]}  d3 {[%clk 0:00:14]} 31. Kg2 {[%clk 0:00:20]}  Qd2 {[%clk 0:00:05]} 32. Rd1 {[%clk 0:00:14]}  Qe3 {[%clk 0:00:02]} 33. d6 {[%clk 0:00:15]}  Re1 {[%clk 0:00:02]} 34. Qxd3 {[%clk 0:00:15]}  Qxd3 {[%clk 0:00:02]} 35. e7 {[%clk 0:00:02]}  f1=Q# {[%clk 0:00:03]} 0-1


[Site "https://www.chess.com"]

[Event "Titled Tuesday Blitz December 06 Late 2022"]
[White "Marchesich, Giovanni"]
[Black "Pein, Jonathan"]
[WhiteFideId "2824790"]
[BlackFideId "417092"]
[WhiteElo "2200"]
[BlackElo "2225"]
[Result "1-0"]
[Round "10"]
[TimeControl "180+1"]
[Date "2022.12.07"]
[WhiteClock "0:00:47"]
[BlackClock "0:00:02"]

1. d4 {[%clk 0:03:00]}  e6 {[%clk 0:02:56]} 2. Bf4 {[%clk 0:02:56]}  c5 {[%clk 0:02:52]} 3. e3 {[%clk 0:02:56]}  Qb6 {[%clk 0:02:47]} 4. Na3 {[%clk 0:02:54]}  cxd4 {[%clk 0:02:44]} 5. exd4 {[%clk 0:02:53]}  Bxa3 {[%clk 0:02:43]} 6. bxa3 {[%clk 0:02:52]}  Qa5+ {[%clk 0:02:39]} 7. Qd2 {[%clk 0:02:50]}  Qxa3 {[%clk 0:02:36]} 8. Nf3 {[%clk 0:02:50]}  Nf6 {[%clk 0:02:29]} 9. Bd3 {[%clk 0:02:48]}  d5 {[%clk 0:02:17]} 10. O-O {[%clk 0:02:47]}  O-O {[%clk 0:02:16]} 11. Ne5 {[%clk 0:02:43]}  Nbd7 {[%clk 0:02:14]} 12. Qe3 {[%clk 0:02:42]}  Qe7 {[%clk 0:02:10]} 13. Bg5 {[%clk 0:02:41]}  h6 {[%clk 0:02:08]} 14. Bh4 {[%clk 0:02:41]}  Re8 {[%clk 0:02:01]} 15. f4 {[%clk 0:02:41]}  b6 {[%clk 0:01:49]} 16. f5 {[%clk 0:02:38]}  exf5 {[%clk 0:01:49]} 17. Rxf5 {[%clk 0:02:38]}  Nxe5 {[%clk 0:01:21]} 18. Rxe5 {[%clk 0:02:35]}  Be6 {[%clk 0:01:21]} 19. Rf1 {[%clk 0:02:31]}  Ng4 {[%clk 0:01:09]} 20. Qg3 {[%clk 0:02:29]}  Qb4 {[%clk 0:00:54]} 21. Rh5 {[%clk 0:02:11]}  Qxd4+ {[%clk 0:00:52]} 22. Kh1 {[%clk 0:02:11]}  Qe3 {[%clk 0:00:30]} 23. Rf3 {[%clk 0:02:01]}  Qc1+ {[%clk 0:00:18]} 24. Rf1 {[%clk 0:02:01]}  Qe3 {[%clk 0:00:09]} 25. Rf3 {[%clk 0:02:01]}  Qe5 {[%clk 0:00:09]} 26. Rxe5 {[%clk 0:01:56]}  Nxe5 {[%clk 0:00:09]} 27. Bf6 {[%clk 0:01:53]}  Ng6 {[%clk 0:00:06]} 28. Bxg6 {[%clk 0:01:52]}  Bg4 {[%clk 0:00:06]} 29. Re3 {[%clk 0:01:39]}  Rxe3 {[%clk 0:00:04]} 30. Qxe3 {[%clk 0:01:40]}  fxg6 {[%clk 0:00:05]} 31. Be5 {[%clk 0:01:37]}  Re8 {[%clk 0:00:04]} 32. h3 {[%clk 0:01:38]}  Bf5 {[%clk 0:00:04]} 33. c3 {[%clk 0:01:36]}  Be4 {[%clk 0:00:04]} 34. Qd4 {[%clk 0:01:36]}  Rf8 {[%clk 0:00:03]} 35. Kh2 {[%clk 0:01:34]}  Rf7 {[%clk 0:00:02]} 36. c4 {[%clk 0:01:33]}  Rd7 {[%clk 0:00:02]} 37. cxd5 {[%clk 0:01:33]}  Bxd5 {[%clk 0:00:03]} 38. Qf4 {[%clk 0:01:31]}  Rf7 {[%clk 0:00:03]} 39. Qc1 {[%clk 0:01:30]}  Be6 {[%clk 0:00:02]} 40. a3 {[%clk 0:01:25]}  Kh7 {[%clk 0:00:01]} 41. Qc3 {[%clk 0:01:18]}  Bf5 {[%clk 0:00:01]} 42. Qd4 {[%clk 0:01:17]}  Rd7 {[%clk 0:00:01]} 43. Bd6 {[%clk 0:01:16]}  h5 {[%clk 0:00:02]} 44. h4 {[%clk 0:01:16]}  Bg4 {[%clk 0:00:03]} 45. Kg3 {[%clk 0:01:15]}  Bf5 {[%clk 0:00:04]} 46. Qe5 {[%clk 0:01:15]}  Bg4 {[%clk 0:00:04]} 47. Kf4 {[%clk 0:01:15]}  Bf5 {[%clk 0:00:05]} 48. Kg5 {[%clk 0:01:14]}  Rf7 {[%clk 0:00:05]} 49. Qe8 {[%clk 0:01:11]}  Rd7 {[%clk 0:00:05]} 50. Qf8 {[%clk 0:01:06]}  Bg4 {[%clk 0:00:04]} 51. Kf4 {[%clk 0:01:06]}  Be6 {[%clk 0:00:03]} 52. Ke5 {[%clk 0:01:06]}  Bf5 {[%clk 0:00:04]} 53. Kd5 {[%clk 0:01:04]}  Bg4 {[%clk 0:00:04]} 54. Kc6 {[%clk 0:01:04]}  Bf5 {[%clk 0:00:04]} 55. Qf7 {[%clk 0:00:53]}  Bg4 {[%clk 0:00:04]} 56. Qxd7 {[%clk 0:00:52]}  Bxd7+ {[%clk 0:00:04]} 57. Kxd7 {[%clk 0:00:53]}  g5 {[%clk 0:00:04]} 58. hxg5 {[%clk 0:00:52]}  Kg6 {[%clk 0:00:05]} 59. Be7 {[%clk 0:00:49]}  Kf5 {[%clk 0:00:02]} 60. Kd6 {[%clk 0:00:47]} 1-0


[Site "https://www.chess.com"]

[Event "Titled Tuesday Blitz December 06 Late 2022"]
[White "Matinian, Nikita"]
[Black "Shohat, Yotam"]
[WhiteFideId "24129100"]
[BlackFideId "2813955"]
[WhiteElo "2422"]
[BlackElo "2216"]
[Result "0-1"]
[Round "10"]
[TimeControl "180+1"]
[Date "2022.12.06"]
[WhiteClock "0:01:16"]
[BlackClock "0:00:21"]

1. e4 {[%clk 0:03:00]}  g6 {[%clk 0:02:57]} 2. d4 {[%clk 0:03:00]}  Nf6 {[%clk 0:02:57]} 3. Nc3 {[%clk 0:03:01]}  d5 {[%clk 0:02:57]} 4. e5 {[%clk 0:03:00]}  Ne4 {[%clk 0:02:57]} 5. Nxe4 {[%clk 0:03:00]}  dxe4 {[%clk 0:02:57]} 6. c3 {[%clk 0:02:58]}  Bg7 {[%clk 0:02:57]} 7. Ne2 {[%clk 0:02:56]}  c5 {[%clk 0:02:57]} 8. Ng3 {[%clk 0:02:56]}  cxd4 {[%clk 0:02:55]} 9. cxd4 {[%clk 0:02:57]}  Nc6 {[%clk 0:02:55]} 10. Be3 {[%clk 0:02:57]}  Qa5+ {[%clk 0:02:46]} 11. Qd2 {[%clk 0:02:57]}  Qxd2+ {[%clk 0:02:45]} 12. Kxd2 {[%clk 0:02:58]}  O-O {[%clk 0:02:45]} 13. Nxe4 {[%clk 0:02:53]}  Rd8 {[%clk 0:02:45]} 14. Kc3 {[%clk 0:02:53]}  Bf5 {[%clk 0:02:44]} 15. Nc5 {[%clk 0:02:52]}  Rac8 {[%clk 0:02:39]} 16. f4 {[%clk 0:02:48]}  b6 {[%clk 0:02:28]} 17. b4 {[%clk 0:02:48]}  bxc5 {[%clk 0:02:18]} 18. bxc5 {[%clk 0:02:49]}  Be4 {[%clk 0:02:03]} 19. Ba6 {[%clk 0:02:44]}  Rb8 {[%clk 0:01:53]} 20. Rhg1 {[%clk 0:02:44]}  Nb4 {[%clk 0:01:49]} 21. Bc4 {[%clk 0:02:41]}  Nc2 {[%clk 0:01:45]} 22. c6 {[%clk 0:02:21]}  Rdc8 {[%clk 0:01:26]} 23. d5 {[%clk 0:02:01]}  Nxe3 {[%clk 0:01:18]} 24. Kd4 {[%clk 0:02:01]}  Nxc4 {[%clk 0:01:13]} 25. Kxe4 {[%clk 0:01:58]}  e6 {[%clk 0:01:11]} 26. Rac1 {[%clk 0:01:46]}  exd5+ {[%clk 0:01:09]} 27. Kxd5 {[%clk 0:01:47]}  Nb6+ {[%clk 0:01:06]} 28. Ke4 {[%clk 0:01:47]}  Rc7 {[%clk 0:01:03]} 29. Rc2 {[%clk 0:01:44]}  Rbc8 {[%clk 0:01:03]} 30. Rgc1 {[%clk 0:01:45]}  Bf8 {[%clk 0:01:02]} 31. Rc3 {[%clk 0:01:43]}  Bb4 {[%clk 0:01:01]} 32. Rb3 {[%clk 0:01:42]}  Bd2 {[%clk 0:00:47]} 33. Rc2 {[%clk 0:01:42]}  Bxf4 {[%clk 0:00:46]} 34. Kxf4 {[%clk 0:01:43]}  Rxc6 {[%clk 0:00:46]} 35. Re2 {[%clk 0:01:43]}  Rc4+ {[%clk 0:00:44]} 36. Kg3 {[%clk 0:01:40]}  Rc3+ {[%clk 0:00:44]} 37. Kf2 {[%clk 0:01:38]}  Rxb3 {[%clk 0:00:43]} 38. axb3 {[%clk 0:01:38]}  Re8 {[%clk 0:00:42]} 39. Ra2 {[%clk 0:01:36]}  Rxe5 {[%clk 0:00:40]} 40. Rxa7 {[%clk 0:01:37]}  Rb5 {[%clk 0:00:40]} 41. Ra3 {[%clk 0:01:36]}  Kg7 {[%clk 0:00:38]} 42. Ke3 {[%clk 0:01:37]}  Kf6 {[%clk 0:00:37]} 43. Kd3 {[%clk 0:01:37]}  Ke5 {[%clk 0:00:35]} 44. Kc3 {[%clk 0:01:37]}  f5 {[%clk 0:00:28]} 45. Ra7 {[%clk 0:01:36]}  h5 {[%clk 0:00:27]} 46. Rg7 {[%clk 0:01:34]}  Kf6 {[%clk 0:00:27]} 47. Rg8 {[%clk 0:01:32]}  h4 {[%clk 0:00:26]} 48. Rh8 {[%clk 0:01:31]}  Kg5 {[%clk 0:00:26]} 49. Rh7 {[%clk 0:01:29]}  Re5 {[%clk 0:00:25]} 50. g3 {[%clk 0:01:20]}  hxg3 {[%clk 0:00:23]} 51. hxg3 {[%clk 0:01:21]}  Re3+ {[%clk 0:00:23]} 52. Kb4 {[%clk 0:01:17]}  Rxg3 {[%clk 0:00:24]} 53. Rb7 {[%clk 0:01:16]}  Nd5+ {[%clk 0:00:23]} 54. Kc5 {[%clk 0:01:17]}  Nf6 {[%clk 0:00:23]} 55. b4 {[%clk 0:01:17]}  Ne4+ {[%clk 0:00:23]} 56. Kd4 {[%clk 0:01:17]}  Rb3 {[%clk 0:00:22]} 57. b5 {[%clk 0:01:17]}  Kf4 {[%clk 0:00:21]} 58. b6 {[%clk 0:01:16]}  g5 {[%clk 0:00:21]} 59. Rb8 {[%clk 0:01:15]}  g4 {[%clk 0:00:21]} 60. b7 {[%clk 0:01:16]}  g3 {[%clk 0:00:21]} 0-1


[Site "https://www.chess.com"]

[Event "Titled Tuesday Blitz December 06 Late 2022"]
[White "Mendez Fortes, Eduardo Jesus"]
[Black "Yuan, Qingyu"]
[WhiteFideId "3502376"]
[BlackFideId "8609772"]
[WhiteElo "2307"]
[BlackElo "2359"]
[Result "0-1"]
[Round "10"]
[TimeControl "180+1"]
[Date "2022.12.06"]
[WhiteClock "0:00:21"]
[BlackClock "0:00:30"]

1. e4 {[%clk 0:02:58]}  e5 {[%clk 0:02:59]} 2. Nf3 {[%clk 0:02:59]}  Nc6 {[%clk 0:03:00]} 3. Bb5 {[%clk 0:02:58]}  Nf6 {[%clk 0:03:00]} 4. d3 {[%clk 0:02:47]}  Bc5 {[%clk 0:03:00]} 5. c3 {[%clk 0:02:44]}  d5 {[%clk 0:02:59]} 6. Nxe5 {[%clk 0:02:38]}  O-O {[%clk 0:02:35]} 7. d4 {[%clk 0:02:36]}  Nxe5 {[%clk 0:02:28]} 8. dxc5 {[%clk 0:02:15]}  Nxe4 {[%clk 0:02:09]} 9. Be3 {[%clk 0:02:15]}  c6 {[%clk 0:01:52]} 10. Be2 {[%clk 0:02:14]}  Qe7 {[%clk 0:01:49]} 11. b4 {[%clk 0:02:11]}  a5 {[%clk 0:01:43]} 12. O-O {[%clk 0:02:09]}  axb4 {[%clk 0:01:36]} 13. cxb4 {[%clk 0:02:09]}  Bf5 {[%clk 0:01:36]} 14. Bd4 {[%clk 0:02:03]}  h6 {[%clk 0:01:31]} 15. a4 {[%clk 0:02:01]}  Rfe8 {[%clk 0:01:30]} 16. Ra2 {[%clk 0:01:58]}  Ng6 {[%clk 0:01:22]} 17. Nc3 {[%clk 0:01:33]}  Nf4 {[%clk 0:01:12]} 18. Bf3 {[%clk 0:01:31]}  Nxc3 {[%clk 0:01:03]} 19. Bxc3 {[%clk 0:01:28]}  Qg5 {[%clk 0:00:51]} 20. Bd2 {[%clk 0:01:11]}  Qh4 {[%clk 0:00:47]} 21. Bxf4 {[%clk 0:00:28]}  Qxf4 {[%clk 0:00:47]} 22. Qc1 {[%clk 0:00:26]}  Qxb4 {[%clk 0:00:44]} 23. Rb2 {[%clk 0:00:26]}  Qxa4 {[%clk 0:00:41]} 24. Rxb7 {[%clk 0:00:26]}  Bd3 {[%clk 0:00:38]} 25. Rd1 {[%clk 0:00:22]}  Bb5 {[%clk 0:00:31]} 26. Qf4 {[%clk 0:00:21]}  Qxf4 {[%clk 0:00:30]} 0-1


[Site "https://www.chess.com"]

[Event "Titled Tuesday Blitz December 06 Late 2022"]
[White "Meunier, Clement"]
[Black "Calcada, Lucas Galvan"]
[WhiteFideId "20667930"]
[BlackFideId "22746099"]
[WhiteElo "2233"]
[BlackElo "1523"]
[Result "1-0"]
[Round "10"]
[TimeControl "180+1"]
[Date "2022.12.07"]
[WhiteClock "0:01:06"]
[BlackClock "0:00:36"]

1. e4 {[%clk 0:03:00]}  c5 {[%clk 0:02:59]} 2. Nf3 {[%clk 0:02:59]}  d6 {[%clk 0:02:57]} 3. Bb5+ {[%clk 0:02:49]}  Bd7 {[%clk 0:02:53]} 4. Bxd7+ {[%clk 0:02:46]}  Qxd7 {[%clk 0:02:54]} 5. O-O {[%clk 0:02:45]}  g6 {[%clk 0:02:53]} 6. c3 {[%clk 0:02:38]}  Bg7 {[%clk 0:02:52]} 7. d4 {[%clk 0:02:28]}  Nf6 {[%clk 0:02:51]} 8. e5 {[%clk 0:02:25]}  dxe5 {[%clk 0:02:49]} 9. dxe5 {[%clk 0:02:26]}  Qxd1 {[%clk 0:02:44]} 10. Rxd1 {[%clk 0:02:24]}  Ng4 {[%clk 0:02:43]} 11. Bf4 {[%clk 0:02:23]}  Nc6 {[%clk 0:02:40]} 12. Re1 {[%clk 0:02:15]}  O-O {[%clk 0:02:31]} 13. h3 {[%clk 0:02:11]}  Nh6 {[%clk 0:02:15]} 14. Nbd2 {[%clk 0:02:11]}  Rfd8 {[%clk 0:02:09]} 15. Ne4 {[%clk 0:02:09]}  b6 {[%clk 0:02:07]} 16. Rad1 {[%clk 0:02:10]}  Bf8 {[%clk 0:01:48]} 17. g4 {[%clk 0:02:00]}  Kg7 {[%clk 0:01:25]} 18. Kg2 {[%clk 0:01:57]}  Ng8 {[%clk 0:01:24]} 19. Neg5 {[%clk 0:01:55]}  h6 {[%clk 0:01:11]} 20. Ne4 {[%clk 0:01:52]}  g5 {[%clk 0:01:08]} 21. Bh2 {[%clk 0:01:53]}  e6 {[%clk 0:01:06]} 22. Nd6 {[%clk 0:01:42]}  Nge7 {[%clk 0:01:04]} 23. c4 {[%clk 0:01:40]}  Ng6 {[%clk 0:01:03]} 24. Rd2 {[%clk 0:01:34]}  Be7 {[%clk 0:00:58]} 25. Red1 {[%clk 0:01:32]}  Nh4+ {[%clk 0:00:46]} 26. Nxh4 {[%clk 0:01:30]}  gxh4 {[%clk 0:00:47]} 27. f4 {[%clk 0:01:05]}  Nd4 {[%clk 0:00:44]} 28. Ne4 {[%clk 0:01:05]}  Kg6 {[%clk 0:00:41]} 29. Bg1 {[%clk 0:01:05]}  Nc6 {[%clk 0:00:39]} 30. Rd7 {[%clk 0:01:05]}  Rxd7 {[%clk 0:00:37]} 31. Rxd7 {[%clk 0:01:05]}  Rd8 {[%clk 0:00:36]} 32. Rc7 {[%clk 0:01:06]} 1-0


[Site "https://www.chess.com"]